bitfinex/quotes_BTCUSD_20250927
["timestamp","ask_amount","ask_price","bid_price","bid_amount"]
[1758992791510,0.01415565,109650.0,109640.0,0.27974368]
[1758992791712,0.38100968,109660.0,109650.0,0.21255044]
[1758992791927,0.39154968,109660.0,109640.0,0.22185178]
[1758992792113,0.06268564,109660.0,109650.0,0.57539854]
[1758992792315,0.00860512,109660.0,109650.0,0.57539854]
[1758992792518,8.00860512,109660.0,109650.0,0.20490854]
[1758992792722,8.19410702,109660.0,109650.0,0.59790854]
[1758992793017,8.19410702,109660.0,109650.0,0.20490854]
[1758992793152,8.5506867,109660.0,109650.0,0.59790854]
[1758992793365,8.92033722,109660.0,109650.0,0.02251]
[1758992793813,8.92033722,109660.0,109650.0,0.41539]
[1758992794171,8.92033722,109660.0,109650.0,0.41839]
[1758992794382,8.93395132,109660.0,109650.0,0.41839]
[1758992794799,8.57737164,109660.0,109650.0,0.21290854]
[1758992795008,8.57737164,109660.0,109650.0,0.60578854]
[1758992795344,8.93395132,109660.0,109650.0,0.60562854]
[1758992796099,8.93395132,109660.0,109650.0,0.42323]
[1758992796704,8.93395132,109660.0,109650.0,0.60562854]
[1758992797336,8.93395132,109660.0,109650.0,0.42323]
[1758992797922,8.93395132,109660.0,109650.0,0.60562854]
[1758992800183,8.721836,109660.0,109650.0,0.42323]
[1758992801165,8.721836,109660.0,109650.0,0.03051]
[1758992801373,9.1045717,109660.0,109650.0,0.03051]
[1758992801581,9.1045717,109660.0,109650.0,0.12107]
[1758992802124,9.1045717,109660.0,109650.0,0.11807]
[1758992803308,9.1045717,109660.0,109650.0,0.11307]
[1758992803721,9.1045717,109660.0,109650.0,0.11407]
[1758992805116,8.36525632,109660.0,109650.0,0.11407]
[1758992805321,9.07841568,109660.0,109650.0,0.11407]
[1758992806975,8.721836,109660.0,109650.0,0.11407]
[1758992809141,8.721836,109660.0,109650.0,0.02351]
[1758992813628,9.07841568,109660.0,109650.0,0.02351]
[1758992813818,9.1045717,109660.0,109650.0,0.02351]
[1758992816453,9.1045717,109660.0,109650.0,0.02251]
[1758992816888,8.89766735,109660.0,109650.0,0.02251]
[1758992817664,8.91197472,109660.0,109650.0,0.02251]
[1758992819590,8.91837994,109660.0,109650.0,0.02251]
[1758992820767,8.90407257,109660.0,109650.0,0.02251]
[1758992821365,8.70423733,109660.0,109650.0,0.02251]
[1758992823683,8.7185447,109660.0,109650.0,0.02251]
[1758992824423,8.80725617,109660.0,109650.0,0.02251]
[1758992824872,9.10353617,109660.0,109650.0,0.02251]
[1758992825308,9.04227243,109660.0,109650.0,0.02251]
[1758992826867,9.04223243,109660.0,109650.0,0.02251]
[1758992828144,8.74599243,109660.0,109650.0,0.02251]
[1758992828355,9.04195243,109660.0,109650.0,0.02251]
[1758992828873,9.49075243,109660.0,109650.0,0.02251]
[1758992833052,9.49076053,109660.0,109650.0,0.02251]
[1758992834101,0.52243181,109630.0,109620.0,0.21513609]
[1758992834247,7.91653534,109630.0,109620.0,0.21725609]
[1758992834456,8.32553554,109630.0,109620.0,0.21725609]
[1758992834665,8.50411934,109630.0,109620.0,0.1443]
[1758992835947,8.50411934,109630.0,109620.0,0.1453]
[1758992836135,8.77170108,109630.0,109620.0,0.16995]
[1758992836558,8.7978571,109630.0,109620.0,0.16995]
[1758992837602,8.7999371,109630.0,109620.0,0.02777]
[1758992838036,8.7999371,109630.0,109620.0,0.02565]
[1758992838232,8.8031571,109630.0,109620.0,0.02565]
[1758992840297,8.8031571,109630.0,109620.0,0.02465]
[1758992841268,8.81746804,109630.0,109620.0,0.02465]
[1758992843757,9.11226804,109630.0,109620.0,0.02465]
[1758992845610,9.11222804,109630.0,109620.0,0.02465]
[1758992846721,8.81746804,109630.0,109620.0,0.02465]
[1758992846929,8.81424804,109630.0,109620.0,0.02430985]
[1758992847139,8.81424804,109630.0,109620.0,0.02945985]
[1758992847140,8.22119802,109630.0,109620.0,0.02945985]
[1758992847346,8.47446882,109630.0,109620.0,0.02945985]
[1758992847759,8.47445729,109630.0,109620.0,0.02945985]
[1758992848429,7.93929381,109630.0,109620.0,0.02945985]
[1758992848642,8.47445729,109630.0,109620.0,0.02945985]
[1758992849296,8.47445729,109630.0,109620.0,0.03045985]
[1758992850114,8.48876767,109630.0,109620.0,0.03045985]
[1758992850316,8.78813993,109630.0,109620.0,0.02737985]
[1758992850519,8.78813993,109630.0,109620.0,0.02530985]
[1758992850954,8.78813993,109630.0,109620.0,0.02737985]
[1758992851654,8.78813993,109630.0,109620.0,0.03045985]
[1758992853558,8.62097428,109630.0,109620.0,0.02737985]
[1758992855745,8.62097428,109630.0,109620.0,0.02530985]
[1758992856316,8.62097428,109630.0,109620.0,0.02737985]
[1758992856973,8.62405428,109630.0,109620.0,0.02530985]
[1758992857131,8.62097428,109630.0,109620.0,0.02530985]
[1758992860023,8.62405428,109630.0,109620.0,0.02530985]
[1758992861462,7.81608906,109630.0,109620.0,0.02737985]
[1758992861681,8.32160202,109630.0,109620.0,0.03045985]
[1758992863246,8.58918376,109630.0,109620.0,0.03045985]
[1758992863625,8.59132376,109630.0,109620.0,0.03045985]
[1758992864857,8.59133648,109630.0,109620.0,0.03045985]
[1758992866032,8.32161474,109630.0,109620.0,0.03045985]
[1758992868651,8.58919648,109630.0,109620.0,0.03045985]
[1758992869950,7.78645126,109630.0,109620.0,0.03045985]
[1758992870188,8.58919648,109630.0,109620.0,0.03045985]
[1758992871363,8.59130648,109630.0,109620.0,0.03045985]
[1758992873152,8.58489197,109630.0,109620.0,0.03045985]
[1758992873377,8.59130964,109630.0,109620.0,0.03045985]
[1758992874712,8.59130964,109630.0,109620.0,0.02737985]
[1758992875281,8.62096016,109630.0,109620.0,0.02737985]
[1758992881737,8.35126842,109630.0,109620.0,0.03031985]
[1758992881986,8.3216179,109630.0,109620.0,0.03031985]
[1758992889002,8.3216179,109630.0,109620.0,0.2127683]
[1758992889559,8.12487571,109630.0,109620.0,0.2127683]
[1758992890309,8.12487571,109630.0,109620.0,0.2147683]
[1758992891206,8.12487571,109630.0,109620.0,0.2137683]
[1758992891939,8.12487571,109630.0,109620.0,0.2167683]
[1758992892622,8.30730752,109630.0,109620.0,0.6063683]
[1758992892916,8.13447317,109630.0,109620.0,0.2167683]
[1758992893035,8.13366013,109630.0,109620.0,0.6063283]
[1758992893659,8.13366013,109630.0,109620.0,0.5112483]
[1758992893890,8.13366013,109630.0,109620.0,0.6063283]
[1758992894287,8.13366013,109630.0,109620.0,0.2167683]
[1758992894490,8.13366013,109630.0,109620.0,0.6063283]
[1758992894742,8.13366013,109630.0,109620.0,0.2167683]
[1758992894908,8.13366013,109630.0,109620.0,0.6063283]
[1758992895764,8.47366013,109630.0,109620.0,0.6063283]
[1758992896344,8.47366013,109630.0,109620.0,0.5112483]
[1758992896547,8.09739124,109630.0,109620.0,0.6063283]
[1758992897630,8.097384,109630.0,109620.0,0.6063283]
[1758992898039,8.11169303,109630.0,109620.0,0.2167683]
[1758992898250,8.11169303,109630.0,109620.0,0.6062883]
[1758992898997,8.11385303,109630.0,109620.0,0.6062883]
[1758992900620,8.11169303,109630.0,109620.0,0.6062883]
[1758992904500,8.11382303,109630.0,109620.0,0.6062883]
[1758992905413,7.93139122,109630.0,109620.0,0.6062883]
[1758992907057,7.75030822,109630.0,109620.0,0.6062883]
[1758992912636,7.74817822,109630.0,109620.0,0.6062883]
[1758992915423,7.74818509,109630.0,109620.0,0.6062883]
[1758992916191,7.75031509,109630.0,109620.0,0.6062883]
[1758992920514,7.40818509,109630.0,109620.0,0.6062883]
[1758992923130,7.40176779,109630.0,109620.0,0.6062883]
[1758992923295,7.40818638,109630.0,109620.0,0.6062883]
[1758992928081,7.19921449,109630.0,109620.0,0.6062883]
[1758992928343,7.1927959,109630.0,109620.0,0.6062883]
[1758992928562,7.1927959,109630.0,109620.0,0.6364402]
[1758992928895,7.1927959,109630.0,109620.0,0.6360802]
[1758992929343,7.1927959,109630.0,109620.0,0.2469202]
[1758992929544,7.1927959,109630.0,109620.0,0.6360402]
[1758992931283,6.83609849,109630.0,109620.0,0.6360402]
[1758992931526,7.1927959,109630.0,109620.0,0.6360402]
[1758992932835,7.1927959,109630.0,109620.0,0.2469202]
[1758992933000,7.1927959,109630.0,109620.0,0.6360402]
[1758992933220,7.1927959,109630.0,109620.0,0.2469202]
[1758992933539,7.1927959,109630.0,109620.0,0.6360002]
[1758992933963,7.1949459,109630.0,109620.0,0.6360002]
[1758992934187,7.1979759,109630.0,109620.0,0.6309902]
[1758992934393,7.22762642,109630.0,109620.0,0.6309902]
[1758992934602,7.22459642,109630.0,109620.0,0.6309902]
[1758992935022,7.22459642,109630.0,109620.0,0.65843449]
[1758992935182,7.21028739,109630.0,109620.0,0.65843449]
[1758992935807,7.21028739,109630.0,109620.0,0.26935449]
[1758992936039,7.21028739,109630.0,109620.0,0.65843449]
[1758992937277,7.21028739,109630.0,109620.0,0.26935449]
[1758992937503,7.21028739,109630.0,109620.0,0.65839449]
[1758992937730,7.21028739,109630.0,109620.0,0.56335449]
[1758992938050,7.21028739,109630.0,109620.0,0.65839449]
[1758992939169,7.21028739,109630.0,109620.0,0.66055449]
[1758992939593,7.21028739,109630.0,109620.0,0.27151449]
[1758992939897,7.21028739,109630.0,109620.0,0.56547449]
[1758992940094,7.21028739,109630.0,109620.0,0.66051449]
[1758992941102,7.21028739,109630.0,109620.0,0.27151449]
[1758992941239,7.21028739,109630.0,109620.0,0.66051449]
[1758992944215,7.21028739,109630.0,109620.0,0.65851449]
[1758992944868,7.21028739,109630.0,109620.0,0.66251449]
[1758992945471,7.21670527,109630.0,109620.0,0.66251449]
[1758992945907,7.21028739,109630.0,109620.0,0.66251449]
[1758992946109,7.21670527,109630.0,109620.0,0.66251449]
[1758992947482,7.21670689,109630.0,109620.0,0.66251449]
[1758992949285,7.18490637,109630.0,109620.0,0.66545449]
[1758992950432,6.96951973,109630.0,109620.0,0.66545449]
[1758992950636,8.38588691,109630.0,109620.0,0.66545449]
[1758992950841,8.0291895,109630.0,109620.0,0.66545449]
[1758992951041,8.38588691,109630.0,109620.0,0.66545449]
[1758992953951,8.0291895,109630.0,109620.0,0.66545449]
[1758992954161,8.38588691,109630.0,109620.0,0.66545449]
[1758992954848,0.37946741,109630.0,109620.0,0.66545449]
[1758992956359,0.02277,109630.0,109620.0,0.66545449]
[1758992956878,0.29021003,109630.0,109620.0,0.66545449]
[1758992957679,0.02277,109630.0,109620.0,0.66545449]
[1758992957883,0.29021003,109630.0,109620.0,0.66545449]
[1758992958627,0.29021003,109630.0,109620.0,0.27645449]
[1758992958764,0.29021003,109630.0,109620.0,0.66517449]
[1758992960830,0.29021003,109630.0,109620.0,0.57009449]
[1758992961032,0.29021003,109630.0,109620.0,0.66513449]
[1758992965009,0.29021003,109630.0,109620.0,0.66509449]
[1758992966743,0.02277,109630.0,109620.0,0.66509449]
[1758992966881,0.29021003,109630.0,109620.0,0.66509449]
[1758992973730,0.02277,109630.0,109620.0,0.66509449]
[1758992973974,0.29021003,109630.0,109620.0,0.66509449]
[1758992976988,0.02277,109630.0,109620.0,0.66509449]
[1758992977163,0.29021003,109630.0,109620.0,0.66509449]
[1758992977947,0.02277,109630.0,109620.0,0.66509449]
[1758992978164,0.29021003,109630.0,109620.0,0.66509449]
[1758992981321,0.29220003,109630.0,109620.0,0.27351449]
[1758992981536,0.55964006,109630.0,109620.0,0.66187449]
[1758992981742,0.29220003,109630.0,109620.0,0.56679449]
[1758992981949,0.29220003,109630.0,109620.0,0.66183449]
[1758992982154,0.29220003,109630.0,109620.0,0.27351449]
[1758992982356,0.29220003,109630.0,109620.0,0.66183449]
[1758992984607,0.29220003,109630.0,109620.0,0.66476449]
[1758992986138,0.29220003,109630.0,109620.0,0.66183449]
[1758992986782,0.29220003,109630.0,109620.0,0.66476449]
[1758992989061,0.29021003,109630.0,109620.0,0.66476449]
[1758992991365,0.02277,109630.0,109620.0,0.66476449]
[1758992991575,0.29021003,109630.0,109620.0,0.66476449]
[1758993004153,0.11398281,109630.0,109620.0,0.66476449]
[1758993004790,0.19583757,109640.0,109630.0,0.21258371]
[1758993005000,8.46970088,109640.0,109630.0,0.60054371]
[1758993005212,8.47177088,109640.0,109630.0,0.62462371]
[1758993006757,8.01156328,109640.0,109630.0,0.62462371]
[1758993006992,8.54644334,109640.0,109630.0,0.62462371]
[1758993018111,8.35582656,109640.0,109630.0,0.62462371]
[1758993018310,8.54337334,109640.0,109630.0,0.62462371]
[1758993018531,8.36505209,109640.0,109630.0,0.62462371]
[1758993023282,8.36505163,109640.0,109630.0,0.62462371]
[1758993030341,8.36505163,109640.0,109630.0,0.62660371]
[1758993030545,8.36505163,109640.0,109630.0,0.62984371]
[1758993032296,8.36505163,109640.0,109630.0,0.53108371]
[1758993032499,8.36505163,109640.0,109630.0,0.62612371]
[1758993038764,8.36505294,109640.0,109630.0,0.62612371]
[1758993039102,8.00849413,109640.0,109630.0,0.62612371]
[1758993039325,8.36505294,109640.0,109630.0,0.62612371]
[1758993040350,8.36505294,109640.0,109630.0,0.23666371]
[1758993040557,8.36505294,109640.0,109630.0,0.62398371]
[1758993045637,8.36505294,109640.0,109630.0,0.62596371]
[1758993047252,8.00849413,109640.0,109630.0,0.62920371]
[1758993047500,8.36505294,109640.0,109630.0,0.62920371]
[1758993048530,8.36298294,109640.0,109630.0,0.62920371]
[1758993050361,8.36298141,109640.0,109630.0,0.62920371]
[1758993054177,8.35655881,109640.0,109630.0,0.62920371]
[1758993054518,8.35762881,109640.0,109630.0,0.62920371]
[1758993057578,8.38727933,109640.0,109630.0,0.23666371]
[1758993057760,8.38727933,109640.0,109630.0,0.62366371]
[1758993059671,8.38727933,109640.0,109630.0,0.52858371]
[1758993059907,8.38727933,109640.0,109630.0,0.62362371]
[1758993068627,8.02965052,109640.0,109630.0,0.62873371]
[1758993068912,8.00107,109640.0,109630.0,0.62873371]
[1758993069120,8.35762881,109640.0,109630.0,0.62873371]
[1758993069516,0.00642054,109640.0,109630.0,0.62873371]
[1758993069729,0.02456,109650.0,109640.0,0.21256707]
[1758993069939,8.36297989,109650.0,109640.0,0.21559707]
[1758993070147,8.36297989,109650.0,109640.0,0.24259707]
[1758993070576,8.00642108,109650.0,109640.0,0.24259707]
[1758993072587,8.57676895,109650.0,109640.0,0.20733517]
[1758993072791,8.57676895,109650.0,109640.0,0.59409517]
[1758993073673,8.39437041,109650.0,109640.0,0.59409517]
[1758993075369,8.57676895,109650.0,109640.0,0.59409517]
[1758993075597,8.39290967,109650.0,109640.0,0.59409517]
[1758993079800,8.39290967,109650.0,109640.0,0.41168]
[1758993080649,8.30375253,109650.0,109640.0,0.41168]
[1758993081411,8.30375253,109650.0,109640.0,0.02492]
[1758993081620,8.5711542,109650.0,109640.0,0.02492]
[1758993081834,8.5711542,109650.0,109640.0,0.41156]
[1758993082068,8.30375253,109650.0,109640.0,0.41156]
[1758993082358,8.5711542,109650.0,109640.0,0.11996]
[1758993082541,8.5711542,109650.0,109640.0,0.41156]
[1758993083726,8.69710144,109650.0,109640.0,0.41156]
[1758993084299,8.69710144,109650.0,109640.0,0.02492]
[1758993084505,8.69710144,109650.0,109640.0,0.41152]
[1758993090235,8.69643144,109650.0,109640.0,0.41152]
[1758993091004,8.47670296,109650.0,109640.0,0.41152]
[1758993105532,8.47670296,109650.0,109640.0,0.41452]
[1758993106101,8.47670159,109650.0,109640.0,0.41452]
[1758993107465,8.47670192,109650.0,109640.0,0.41452]
[1758993109136,8.49100889,109650.0,109640.0,0.41452]
[1758993114429,8.49100889,109650.0,109640.0,0.59693517]
[1758993116312,8.49630689,109650.0,109640.0,0.59693517]
[1758993117251,8.48199992,109650.0,109640.0,0.59693517]
[1758993117669,8.48199992,109650.0,109640.0,0.41412]
[1758993119566,8.48199992,109650.0,109640.0,0.59653517]
[1758993120736,8.49630689,109650.0,109640.0,0.41412]
[1758993121540,8.49630689,109650.0,109640.0,0.59653517]
[1758993121973,7.96043355,109650.0,109640.0,0.60162517]
[1758993122194,8.22783522,109650.0,109640.0,0.60162517]
[1758993122401,8.22890522,109650.0,109640.0,0.60162517]
[1758993122762,8.49630689,109650.0,109640.0,0.60162517]
[1758993122978,8.49630969,109650.0,109640.0,0.60162517]
[1758993123843,8.49630969,109650.0,109640.0,0.59863517]
[1758993124189,8.49630969,109650.0,109640.0,0.60162517]
[1758993125329,8.49630969,109650.0,109640.0,0.41622]
[1758993125541,7.96150635,109650.0,109640.0,0.41921]
[1758993125732,8.49630969,109650.0,109640.0,0.60162517]
[1758993126905,8.49630969,109650.0,109640.0,0.59863517]
[1758993127340,8.49630969,109650.0,109640.0,0.60162517]
[1758993127564,8.49630969,109650.0,109640.0,0.41921]
[1758993127987,8.49630969,109650.0,109640.0,0.03301]
[1758993128199,8.49630969,109650.0,109640.0,0.41905]
[1758993129375,8.49630978,109650.0,109640.0,0.32397]
[1758993129591,8.49630978,109650.0,109640.0,0.41901]
[1758993130269,8.49630978,109650.0,109640.0,0.03301]
[1758993130492,8.49630978,109650.0,109640.0,0.41602]
[1758993131969,8.49630978,109650.0,109640.0,0.31884]
[1758993132170,8.49630978,109650.0,109640.0,0.41388]
[1758993135864,8.49630986,109650.0,109640.0,0.41388]
[1758993138905,8.30716271,109650.0,109640.0,0.41388]
[1758993140561,7.92425118,109650.0,109640.0,0.41388]
[1758993141180,7.92425118,109650.0,109640.0,0.02792]
[1758993141404,7.59384498,109650.0,109640.0,0.31872]
[1758993141610,7.9510772,109650.0,109640.0,0.31872]
[1758993141830,7.92492118,109650.0,109640.0,0.31872]
[1758993143172,7.92492118,109650.0,109640.0,0.02792]
[1758993143385,7.92492118,109650.0,109640.0,0.31868]
[1758993144844,7.91061421,109650.0,109640.0,0.31868]
[1758993146937,7.55405199,109650.0,109640.0,0.31868]
[1758993147099,7.91061421,109650.0,109640.0,0.31868]
[1758993148129,7.92492139,109650.0,109640.0,0.31868]
[1758993149279,7.91061421,109650.0,109640.0,0.31868]
[1758993151365,7.91061421,109650.0,109640.0,0.02792]
[1758993151366,8.31848721,109650.0,109640.0,0.02792]
[1758993151590,8.60912721,109650.0,109640.0,0.02792]
[1758993152280,8.60912721,109650.0,109610.0,0.09368474]
[1758993152281,0.18244845,109620.0,109610.0,0.09368474]
[1758993152524,0.5224651,109610.0,109600.0,0.17110609]
[1758993152762,7.87399225,109610.0,109600.0,0.46390609]
[1758993153001,7.92685277,109610.0,109600.0,0.46390609]
[1758993153215,7.92685277,109610.0,109600.0,0.39095]
[1758993153405,7.92685277,109610.0,109600.0,0.39108948]
[1758993153880,7.9411642,109610.0,109600.0,0.39108948]
[1758993154577,7.9411642,109610.0,109600.0,0.41383948]
[1758993156443,7.93474119,109610.0,109600.0,0.41383948]
[1758993158692,7.92042976,109610.0,109600.0,0.41383948]
[1758993160041,7.92149976,109610.0,109600.0,0.40856948]
[1758993160281,7.92149976,109610.0,109600.0,0.40852948]
[1758993160648,7.92149976,109610.0,109600.0,0.41068948]
[1758993161685,7.9358111,109610.0,109600.0,0.41068948]
[1758993163067,7.9358111,109610.0,109600.0,0.41268948]
[1758993163746,7.94220312,109610.0,109600.0,0.41268948]
[1758993165499,7.94220278,109610.0,109600.0,0.41268948]
[1758993165671,7.92789144,109610.0,109600.0,0.41268948]
[1758993166532,7.57132922,109610.0,109600.0,0.41268948]
[1758993166755,7.92789144,109610.0,109600.0,0.41268948]
[1758993167174,7.74542634,109610.0,109600.0,0.41268948]
[1758993167390,7.92789144,109610.0,109600.0,0.41268948]
[1758993168460,7.92789144,109610.0,109600.0,0.41052948]
[1758993170211,7.94220354,109610.0,109600.0,0.41052948]
[1758993170587,7.94287354,109610.0,109600.0,0.02488948]
[1758993170833,7.94287354,109610.0,109600.0,0.31544948]
[1758993173009,7.94175454,109610.0,109600.0,0.31544948]
[1758993173675,7.58452232,109610.0,109600.0,0.31544948]
[1758993173889,7.94108454,109610.0,109600.0,0.31544948]
[1758993176015,7.92677244,109610.0,109600.0,0.31544948]
[1758993177657,7.92677244,109610.0,109600.0,0.31344948]
[1758993180307,7.57021022,109610.0,109600.0,0.31344948]
[1758993180544,7.92677244,109610.0,109600.0,0.31344948]
[1758993181175,7.94108494,109610.0,109600.0,0.34360138]
[1758993183959,7.94108494,109610.0,109600.0,0.34568138]
[1758993185118,7.94108494,109610.0,109600.0,0.34862138]
[1758993185613,7.92677244,109610.0,109600.0,0.34862138]
[1758993187475,7.57021022,109610.0,109600.0,0.34862138]
[1758993187679,7.92677244,109610.0,109600.0,0.34862138]
[1758993188280,7.92570244,109610.0,109600.0,0.34862138]
[1758993188655,7.94001494,109610.0,109600.0,0.34862138]
[1758993190660,7.94108494,109610.0,109600.0,0.34862138]
[1758993191888,7.94108494,109610.0,109600.0,0.05512138]
[1758993192055,7.94108494,109610.0,109600.0,0.34548138]
[1758993193583,7.60220394,109610.0,109600.0,0.34548138]
[1758993193793,7.60220394,109610.0,109600.0,0.34859138]
[1758993194667,7.60220394,109610.0,109600.0,0.34548138]
[1758993195753,7.92789144,109610.0,109600.0,0.34548138]
[1758993198817,7.57025922,109610.0,109600.0,0.34859138]
[1758993199036,7.92682144,109610.0,109600.0,0.34859138]
[1758993199230,7.94220394,109610.0,109600.0,0.34859138]
[1758993200795,8.12087442,109610.0,109600.0,0.34859138]
[1758993201959,8.12087442,109610.0,109600.0,0.34548138]
[1758993203431,8.10656192,109610.0,109600.0,0.05512138]
[1758993203654,8.10656192,109610.0,109600.0,0.34540138]
[1758993206849,8.10656192,109610.0,109600.0,0.05304138]
[1758993207073,8.10656192,109610.0,109600.0,0.34328138]
[1758993207631,8.10656192,109610.0,109600.0,0.05304138]
[1758993207834,8.10656192,109610.0,109600.0,0.34328138]
[1758993208378,8.0769114,109610.0,109600.0,0.34328138]
[1758993209735,8.0912239,109610.0,109600.0,0.34328138]
[1758993209948,8.0769114,109610.0,109600.0,0.34328138]
[1758993211306,8.0769114,109610.0,109600.0,0.05304138]
[1758993211514,8.0769114,109610.0,109600.0,0.34324138]
[1758993211727,8.0912239,109610.0,109600.0,0.34324138]
[1758993215582,8.0769114,109610.0,109600.0,0.34324138]
[1758993218679,8.0912239,109610.0,109600.0,0.34324138]
[1758993221638,8.0912239,109610.0,109600.0,0.34527138]
[1758993222706,8.12087303,109610.0,109600.0,0.34527138]
[1758993223417,8.12087303,109610.0,109600.0,0.34832138]
[1758993225691,8.10656053,109610.0,109600.0,0.34832138]
[1758993228876,8.12087303,109610.0,109600.0,0.34832138]
[1758993232471,8.12087303,109610.0,109600.0,0.34527138]
[1758993233429,8.12087303,109610.0,109600.0,0.34324138]
[1758993233670,8.12087303,109610.0,109600.0,0.34531138]
[1758993234630,8.12087303,109610.0,109600.0,0.05511138]
[1758993234854,8.12087303,109610.0,109600.0,0.34304138]
[1758993235618,8.10656053,109610.0,109600.0,0.34304138]
[1758993238759,8.12087303,109610.0,109600.0,0.34304138]
[1758993240765,7.92792258,109610.0,109600.0,0.34304138]
[1758993241153,7.92792258,109610.0,109600.0,0.33693734]
[1758993242406,7.92688294,109610.0,109600.0,0.34217734]
[1758993243100,7.92688294,109610.0,109600.0,0.33900734]
[1758993243304,7.91257044,109610.0,109600.0,0.33900734]
[1758993246309,7.92688294,109610.0,109600.0,0.04900734]
[1758993246784,7.92688294,109610.0,109600.0,0.33884734]
[1758993246973,7.91257044,109610.0,109600.0,0.04900734]
[1758993247194,7.91257044,109610.0,109600.0,0.33884734]
[1758993250107,7.92688294,109610.0,109600.0,0.33884734]
[1758993251269,7.75042248,109610.0,109600.0,0.33884734]
[1758993253110,7.75042248,109610.0,109600.0,0.04900734]
[1758993253316,7.75042248,109610.0,109600.0,0.33880734]
[1758993255274,7.75042248,109610.0,109600.0,0.33876734]
[1758993255663,7.73610998,109610.0,109600.0,0.33876734]
[1758993258829,7.75042248,109610.0,109600.0,0.33876734]
[1758993259509,7.75042248,109610.0,109600.0,0.04900734]
[1758993259750,7.75042248,109610.0,109600.0,0.33872734]
[1758993260703,7.75042248,109610.0,109600.0,0.04900734]
[1758993260914,7.75042248,109610.0,109600.0,0.33872734]
[1758993261122,7.75042248,109610.0,109600.0,0.04900734]
[1758993261403,7.75042248,109610.0,109600.0,0.33872734]
[1758993261625,7.75042248,109610.0,109600.0,0.04693734]
[1758993262055,7.75042248,109610.0,109600.0,0.28137734]
[1758993262678,7.57202188,109610.0,109600.0,0.28137734]
[1758993263552,7.57202188,109610.0,109600.0,0.04693734]
[1758993263754,7.57202188,109610.0,109600.0,0.33661734]
[1758993265334,7.57202188,109610.0,109600.0,0.04693734]
[1758993265545,7.57202188,109610.0,109600.0,0.33661734]
[1758993265765,7.55770938,109610.0,109600.0,0.33657734]
[1758993266401,7.55770938,109610.0,109600.0,0.04693734]
[1758993266633,7.55770938,109610.0,109600.0,0.33657734]
[1758993268719,7.55770938,109610.0,109600.0,0.04693734]
[1758993268935,7.57202186,109610.0,109600.0,0.33657734]
[1758993270832,7.57202186,109610.0,109600.0,0.04693734]
[1758993271080,7.57202186,109610.0,109600.0,0.33653734]
[1758993274860,7.57205092,109610.0,109600.0,0.33653734]
[1758993275060,7.21521882,109610.0,109600.0,0.33653734]
[1758993275297,7.57205092,109610.0,109600.0,0.33653734]
[1758993275704,7.55773844,109610.0,109600.0,0.33653734]
[1758993276628,7.55773844,109610.0,109600.0,0.33853734]
[1758993280168,7.57205092,109610.0,109600.0,0.33853734]
[1758993281138,7.57205092,109610.0,109600.0,0.34172734]
[1758993282300,7.57205085,109610.0,109600.0,0.34172734]
[1758993287516,7.54133172,109610.0,109600.0,0.34172734]
[1758993288046,7.54240172,109610.0,109600.0,0.34172734]
[1758993288599,7.54240172,109610.0,109600.0,0.33853734]
[1758993289562,7.52808924,109610.0,109600.0,0.33853734]
[1758993292503,7.54240172,109610.0,109600.0,0.33853734]
[1758993293933,7.37349064,109610.0,109600.0,0.33853734]
[1758993295121,7.37349064,109610.0,109600.0,0.04693734]
[1758993295122,7.37349247,109610.0,109600.0,0.04693734]
[1758993295335,7.37349247,109610.0,109600.0,0.33835734]
[1758993295553,7.35917999,109610.0,109600.0,0.33835734]
[1758993298610,7.37349247,109610.0,109600.0,0.33835734]
[1758993299383,7.36706997,109610.0,109600.0,0.33835734]
[1758993299594,7.37349239,109610.0,109600.0,0.33835734]
[1758993301007,7.37349239,109610.0,109600.0,0.33633734]
[1758993301422,7.37349239,109610.0,109600.0,0.33835734]
[1758993302875,7.37349239,109610.0,109600.0,0.04895734]
[1758993303197,7.37349239,109610.0,109600.0,0.33621734]
[1758993303760,7.37349239,109610.0,109600.0,0.04693734]
[1758993303960,7.37349239,109610.0,109600.0,0.33621734]
[1758993304172,7.40094605,109610.0,109600.0,0.33621734]
[1758993306075,7.38663357,109610.0,109600.0,0.33621734]
[1758993306551,7.4162827,109610.0,109600.0,0.04693734]
[1758993306795,7.4162827,109610.0,109600.0,0.33617734]
[1758993307489,7.7737848,109610.0,109600.0,0.33617734]
[1758993307721,7.4169527,109610.0,109600.0,0.33617734]
[1758993308174,7.7737848,109610.0,109600.0,0.33617734]
[1758993308435,7.4169527,109610.0,109600.0,0.33617734]
[1758993309096,7.43126535,109610.0,109600.0,0.33617734]
[1758993309857,7.43126535,109610.0,109600.0,0.04693734]
[1758993310059,7.43126535,109610.0,109600.0,0.33617734]
[1758993310288,7.43126535,109610.0,109600.0,0.33613734]
[1758993310526,7.43126337,109610.0,109600.0,0.33613734]
[1758993311071,7.42484293,109610.0,109600.0,0.33613734]
[1758993311287,7.78167503,109610.0,109600.0,0.04693734]
[1758993311562,7.85587765,109610.0,109600.0,0.14089734]
[1758993311739,7.81425163,109610.0,109600.0,0.04693734]
[1758993312164,7.81425163,109610.0,109600.0,0.11317734]
[1758993312371,7.80783105,109610.0,109600.0,0.11317734]
[1758993312606,7.81425105,109610.0,109600.0,0.11317734]
[1758993313474,7.80783105,109610.0,109600.0,0.11317734]
[1758993314541,7.80783105,109610.0,109600.0,0.04693734]
[1758993315033,7.89654252,109610.0,109600.0,0.04693734]
[1758993315664,7.88222987,109610.0,109600.0,0.04693734]
[1758993316473,7.7935184,109610.0,109600.0,0.04693734]
[1758993317544,7.79993824,109610.0,109600.0,0.04693734]
[1758993319960,7.81425168,109610.0,109600.0,0.04693734]
[1758993322838,7.90368712,109610.0,109600.0,0.04693734]
[1758993325415,7.90301712,109610.0,109600.0,0.04693734]
[1758993325652,7.88870368,109610.0,109600.0,0.04693734]
[1758993327928,7.08560404,109610.0,109600.0,0.04693734]
[1758993328145,7.59484778,109610.0,109600.0,0.04693734]
[1758993328881,7.60916111,109610.0,109600.0,0.04693734]
[1758993334821,7.60915586,109610.0,109600.0,0.04693734]
[1758993335766,7.59484253,109610.0,109600.0,0.04693734]
[1758993337721,7.59484253,109610.0,109600.0,0.04896734]
[1758993337927,7.59484253,109610.0,109600.0,0.04693734]
[1758993338154,7.37014277,109610.0,109600.0,0.04693734]
[1758993340248,7.38445609,109610.0,109600.0,0.04693734]
[1758993340696,7.65215597,109610.0,109600.0,0.04693734]
[1758993340854,7.67831199,109610.0,109600.0,0.04693734]
[1758993342529,7.67831199,109610.0,109600.0,0.04896734]
[1758993342530,6.87521235,109610.0,109600.0,0.04896734]
[1758993342717,7.67831199,109610.0,109600.0,0.04896734]
[1758993343276,7.67831998,109610.0,109600.0,0.04896734]
[1758993345145,7.4106201,109610.0,109600.0,0.04896734]
[1758993345452,7.20286804,109610.0,109600.0,0.04896734]
[1758993345621,7.18855472,109610.0,109600.0,0.04896734]
[1758993347271,6.65208496,109610.0,109600.0,0.05191734]
[1758993347476,6.91573196,109610.0,109600.0,0.05191734]